lending/lending_fUSD_20251116
["ID","MTS","AMOUNT","RATE_DAILY","PERIOD"]
[394112994,1763299840210,-463.94948861,0.00018,2]
[394112995,1763299840221,-9554.11339898,0.00018,2]
[394112996,1763299840244,-1286.75478,0.00018,2]
[394112997,1763299840361,-3373295.41821174,0.00018,2]
[394112998,1763299840373,-102190.85899187,0.00018,2]
[394113007,1763299843302,-2247.56612239,0.000169,2]
[394113008,1763299843360,-3169.50055999,0.000169,2]
[394113009,1763299843371,-478.455,0.000169,2]
[394113010,1763299843418,-480.0,0.000169,2]
[394113029,1763299846340,-299.81896116,0.000169,2]
[394113030,1763299846399,-1494.9000007,0.000169,2]
[394113032,1763299848207,-10000.01,0.000169,2]
[394113033,1763299854230,-10000.01,0.000169,2]
[394113183,1763300619961,668.73,0.00013699,2]
[394113209,1763300940784,150.0,0.00030134,120]
[394113212,1763301004290,167.77,0.00030137,120]
[394113214,1763301032244,-1243.41,0.00016438,2]
[394113215,1763301032254,-770.399917,0.0001667,2]
[394113216,1763301032263,-166.66,0.00016754,2]
[394113217,1763301032273,-550.0,0.00016799,2]
[394113218,1763301032282,-1200.0,0.00016799,2]
[394113219,1763301032292,-162.05230913,0.00016799,2]
[394113220,1763301032413,-137.94769087,0.00016799,2]
[394113221,1763301032422,-1303.4762,0.000168,2]
[394113222,1763301032432,-194.4558529,0.000168,2]
[394113223,1763301032526,-3587.86075905,0.000168,2]
[394113224,1763301032536,-15680.7506,0.000168,2]
[394113225,1763301032546,-200.0,0.00016868,2]
[394113226,1763301032556,-500.0,0.00016873,2]
[394113227,1763301032565,-500.0,0.00016873,2]
[394113228,1763301032575,-502.33367839,0.00016873,2]
[394113229,1763301032584,-500.0,0.00016873,2]
[394113230,1763301032594,-500.0,0.000169,2]
[394113231,1763301032603,-250.0,0.00017,2]
[394113232,1763301032612,-1705.81,0.00017063,2]
[394113233,1763301032622,-166.66,0.00017107,2]
[394113234,1763301032631,-47049.32,0.00017301,2]
[394113236,1763301032641,-200.0,0.00017356,2]
[394113238,1763301032650,-501.92101644,0.00017421,2]
[394113240,1763301032659,-510.6439987,0.00017421,2]
[394113241,1763301032669,-403.29062472,0.00017431,2]
[394113243,1763301032678,-507.81422809,0.00017431,2]
[394113244,1763301032688,-500.0,0.00017431,2]
[394113245,1763301032698,-502.66991092,0.00017431,2]
[394113247,1763301032707,-400.0,0.00017431,2]
[394113250,1763301032716,-500.0,0.00017431,2]
[394113252,1763301032726,-28454.71,0.00017432,2]
[394113254,1763301032735,-166.66,0.00017459,2]
[394113256,1763301032744,-218.58139799,0.00017546,2]
[394113259,1763301032754,-166.66,0.00017812,2]
[394113262,1763301032763,-500.0,0.00017899,2]
[394113265,1763301032772,-500.0,0.00017899,2]
[394113268,1763301032781,-301.29037695,0.000179,2]
[394113271,1763301032794,-175.28613995,0.000179,2]
[394113275,1763301032804,-536.54,0.0001797,2]
[394113279,1763301032813,-501.55257182,0.00017973,2]
[394113281,1763301032822,-500.0,0.00017973,2]
[394113284,1763301032832,-500.0,0.00017973,2]
[394113287,1763301032842,-502.03384973,0.00017973,2]
[394113289,1763301032851,-500.0,0.00017973,2]
[394113291,1763301032860,-500.0,0.00017973,2]
[394113293,1763301032870,-500.0,0.00017973,2]
[394113295,1763301032879,-501.84826476,0.00017973,2]
[394113297,1763301032889,-500.99618926,0.00017973,2]
[394113299,1763301032899,-508.2246355,0.00017973,2]
[394113301,1763301032908,-244.61599115,0.00017973,2]
[394113303,1763301032917,-500.47144105,0.00017973,2]
[394113305,1763301032927,-500.0,0.00017973,2]
[394113307,1763301032936,-500.0,0.00017982,2]
[394113309,1763301032946,-176.81248374,0.0001799,2]
[394113311,1763301032955,-500.0,0.0001799,2]
[394113313,1763301032965,-500.0,0.0001799,2]
[394113315,1763301032974,-500.0,0.0001799,2]
[394113317,1763301032984,-500.0,0.0001799,2]
[394113319,1763301032994,-500.0,0.0001799,2]
[394113321,1763301033004,-500.0,0.0001799,2]
[394113323,1763301033013,-500.0,0.0001799,2]
[394113325,1763301033024,-500.0,0.0001799,2]
[394113327,1763301033033,-500.0,0.0001799,2]
[394113329,1763301033044,-500.0,0.0001799,2]
[394113331,1763301033054,-500.0,0.0001799,2]
[394113333,1763301033064,-500.0,0.0001799,2]
[394113335,1763301033073,-500.0,0.0001799,2]
[394113336,1763301033083,-500.0,0.0001799,2]
[394113337,1763301033093,-500.0,0.0001799,2]
[394113338,1763301033102,-500.0,0.0001799,2]
[394113339,1763301033112,-500.0,0.0001799,2]
[394113340,1763301033121,-500.0,0.0001799,2]
[394113341,1763301033131,-6.45095191,0.0001799,2]
[394113342,1763301033143,-493.54904809,0.0001799,2]
[394113343,1763301033153,-16.02005747,0.0001799,2]
[394113357,1763301038227,-354.0347142,0.0001799,2]
[394113358,1763301038239,-129.94522833,0.0001799,2]
[394113359,1763301038248,-185.93024784,0.0001799,2]
[394113360,1763301038260,-314.06975216,0.0001799,2]
[394113361,1763301038269,-500.0,0.0001799,2]
[394113362,1763301038280,-156.43251461,0.0001799,2]
[394113363,1763301038290,-500.0,0.0001799,2]
[394113364,1763301038299,-500.0,0.0001799,2]
[394113365,1763301038309,-500.0,0.0001799,2]
[394113366,1763301038319,-350.0,0.0001799,2]
[394113367,1763301038328,-3149.1622396,0.00017991,2]
[394113368,1763301038337,-3830.4529744,0.00017991,2]
[394113370,1763301038347,-961.8592972,0.00017991,2]
[394113371,1763301038358,-690.5177596,0.00017991,2]
[394113372,1763301038367,-3160.1714575,0.00017991,2]
[394113373,1763301038377,-556.7360546,0.00017991,2]
[394113374,1763301038386,-908.61412075,0.00017991,2]
[394113375,1763301038401,-858.6813649,0.00017991,2]
[394113397,1763301040202,-2626.02496042,0.00017991,2]
[394113398,1763301040218,-8934.51829875,0.00017991,2]
[394113399,1763301040230,-9333.13754608,0.00017991,2]
[394113400,1763301040240,-594.32650458,0.00017999,2]
[394113401,1763301040249,-531.70998207,0.00017999,2]
[394113402,1763301040259,-6604.36556449,0.00018,2]
[394113403,1763301040389,-4748.85,0.00018,2]
[394113405,1763301040559,-3561.99998,0.00018,2]
[394113413,1763301043742,-2315.16025813,0.00018,2]
[394113414,1763301043755,-22941.54124954,0.00018,2]
[394113415,1763301043766,-4659.0,0.00018,2]
[394113416,1763301043777,-1133.49,0.00018,2]
[394113423,1763301046252,-120999.00000205,0.00018,2]
[394113424,1763301046264,-25554.65113499,0.00018,2]
[394113425,1763301046481,-1037.90001,0.00018,2]
[394113426,1763301046540,-5221.74849236,0.00018,2]
[394113427,1763301046599,-621.58887633,0.00018,2]
[394113445,1763301119228,901.96,9.406e-05,2]
[394113446,1763301119437,901.96,9.901e-05,2]
[394113447,1763301119621,901.96,0.00010396,2]
[394113448,1763301119842,901.96,0.00010891,2]
[394113449,1763301120047,901.96,0.00011386,2]
[394113450,1763301120251,901.96,0.00011882,2]
[394113451,1763301120990,901.96,0.00012377,2]
[394113452,1763301121033,901.96,0.00012872,2]
[394113453,1763301121121,901.96,0.00013367,2]
[394113454,1763301121313,901.96,0.00013862,2]
[394113455,1763301121526,901.96,0.00014357,2]
[394113456,1763301121740,901.96,0.00014852,2]
[394113457,1763301121973,901.96,0.00015347,2]
[394113458,1763301122179,901.96,0.00015842,2]
[394113482,1763301426343,300.0,0.0003,120]
[394113557,1763302141258,150.0,0.00030136,120]
[394113564,1763302231417,-901.96,0.00016337,2]
[394113565,1763302231426,-345.53830002,0.00016438,2]
[394113566,1763302231439,-259.41690976,0.00016438,2]
[394113567,1763302231449,-192.28,0.00016712,2]
[394113568,1763302231458,-255.78,0.00016826,2]
[394113569,1763302231467,-901.96,0.00016832,2]
[394113570,1763302231477,-1794.39,0.00016869,2]
[394113571,1763302231486,-999.0,0.00016924,3]
[394113572,1763302231496,-773.0,0.00016985,2]
[394113573,1763302231505,-300.0,0.00016985,2]
[394113574,1763302231515,-300.0,0.00016985,2]
[394113575,1763302231524,-30326.28,0.00016986,2]
[394113576,1763302231534,-250.0,0.00017,2]
[394113577,1763302231544,-6360.88,0.00017035,2]
[394113578,1763302231553,-3404.08495071,0.00017119,2]
[394113579,1763302231563,-150.84,0.00017152,2]
[394113580,1763302231573,-500.0,0.000172,2]
[394113581,1763302231582,-500.0,0.000172,2]
[394113582,1763302231592,-500.0,0.000172,2]
[394113583,1763302231601,-500.0,0.000172,2]
[394113584,1763302231610,-500.0,0.000172,2]
[394113585,1763302231623,-500.0,0.000172,2]
[394113586,1763302231632,-500.0,0.000172,2]
[394113587,1763302231642,-500.0,0.000172,2]
[394113588,1763302231651,-500.0,0.000172,2]
[394113589,1763302231660,-500.0,0.000172,2]
[394113590,1763302231670,-230.10766599,0.000172,2]
[394113591,1763302231679,-500.0,0.000172,2]
[394113592,1763302231689,-500.0,0.000172,2]
[394113593,1763302231698,-500.0,0.000172,2]
[394113595,1763302231708,-500.0,0.000172,2]
[394113597,1763302231718,-500.0,0.00017219,2]
[394113598,1763302231727,-901.96,0.00017327,2]
[394113600,1763302231736,-1963.26,0.00017352,2]
[394113601,1763302231746,-500.0,0.00017431,2]
[394113602,1763302231756,-500.0,0.00017431,2]
[394113603,1763302231766,-500.0,0.00017431,2]
[394113605,1763302231775,-213.61127328,0.00017431,2]
[394113607,1763302231784,-6240.61,0.00017728,2]
[394113609,1763302231793,-9999.99,0.00017728,2]
[394113611,1763302231802,-1294.33,0.00017728,2]
[394113613,1763302231811,-9999.99,0.00017728,2]
[394113615,1763302231820,-8491.56,0.00017728,2]
[394113617,1763302231829,-7373.92,0.00017728,2]
[394113619,1763302231839,-999.99,0.00017728,2]
[394113621,1763302231848,-9999.99,0.00017728,2]
[394113623,1763302231858,-150.99,0.00017728,2]
[394113625,1763302231872,-8270.52,0.00017728,2]
[394113626,1763302231882,-323.08070533,0.00017773,2]
[394113627,1763302231891,-504.36442278,0.00017773,2]
[394113628,1763302231901,-501.27954765,0.00017773,2]
[394113629,1763302231913,-218.58139799,0.00017791,2]
[394113630,1763302231923,-2000.0,0.000178,2]
[394113631,1763302231932,-901.96,0.00017822,2]
[394113632,1763302231943,-157.757526,0.00017898,2]
[394113633,1763302231952,-300.0,0.000179,6]
[394113634,1763302231961,-271.1613393,0.000179,2]
[394113635,1763302231970,-605.48547015,0.000179,2]
[394113636,1763302231979,-300.0,0.00017971,2]
[394113637,1763302231988,-250.0,0.00017971,2]
[394113638,1763302231998,-504.46013456,0.00017973,2]
[394113639,1763302232007,-507.47635794,0.00017973,2]
[394113640,1763302232017,-502.4137082,0.00017973,2]
[394113641,1763302232026,-337.06854993,0.00017973,2]
[394113642,1763302232035,-164.00583255,0.00017973,2]
[394113643,1763302232045,-500.0,0.00017973,2]
[394113644,1763302232055,-590.90994192,0.00017973,2]
[394113645,1763302232064,-503.07787062,0.00017973,2]
[394113646,1763302232073,-474.82122033,0.00017973,2]
[394113647,1763302232083,-465.67133023,0.00017973,2]
[394113648,1763302232092,-151.0,0.00017995,2]
[394113649,1763302232101,-169.46323154,0.00017997,2]
[394113650,1763302232111,-17937.18499531,0.00017998,2]
[394113651,1763302232138,-381.57,0.00017998,2]
[394113652,1763302232149,-1055.83289825,0.00017998,2]
[394113653,1763302232185,-354.78291623,0.00017998,2]
[394113668,1763302237458,-500.0,0.00017898,2]
[394113669,1763302237468,-500.0,0.00017953,2]
[394113670,1763302237477,-63937.47304855,0.00017998,2]
[394113671,1763302237516,-600.26323729,0.00017998,2]
[394113672,1763302237580,-1250.29566396,0.00017998,2]
[394113673,1763302239542,-2125.68499711,0.00017998,2]
[394113674,1763302239552,-4345.842567,0.00017998,2]
[394113675,1763302239563,-1536.53500001,0.00017998,2]
[394113680,1763302242634,-464.0,0.00017898,2]
[394113682,1763302242644,-464.0,0.00017953,2]
[394113684,1763302242654,-102.50333599,0.00017998,2]
[394113685,1763302242665,-10668.69426932,0.00017998,2]
[394113686,1763302242941,-31352.00781258,0.00017998,2]
[394113687,1763302242951,-3072.3752073,0.00017998,2]
[394113688,1763302242960,-1045.3966098,0.00017998,2]
[394113689,1763302242969,-859.4606305,0.00017998,2]
[394113690,1763302242978,-435.91179761,0.00017999,2]
[394113691,1763302242987,-512.06520469,0.00017999,2]
[394113692,1763302242997,-500.0,0.00017999,2]
[394113693,1763302243006,-500.0,0.00017999,2]
[394113694,1763302243016,-1005.8282,0.00017999,2]
[394113695,1763302243025,-1000.5796,0.00017999,2]
[394113696,1763302243035,-374883.09273537,0.00018,2]
[394113697,1763302243044,-500.0,0.00018,2]
[394113698,1763302243053,-200.0,0.00018,2]
[394113699,1763302243063,-794.65574,0.00018,2]
[394113700,1763302243073,-500.0,0.00018008,2]
[394113701,1763302243082,-464.0,0.00018008,2]
[394113702,1763302243092,-500.0,0.00018062,2]
[394113703,1763302243102,-464.0,0.00018062,2]
[394113704,1763302243111,-1000.0,0.00018082,2]
[394113705,1763302243121,-500.0,0.00018117,2]
[394113706,1763302243131,-464.0,0.00018117,2]
[394113707,1763302243140,-166.66,0.00018165,2]
[394113708,1763302243150,-500.0,0.00018172,2]
[394113709,1763302243159,-464.0,0.00018172,2]
[394113710,1763302243169,-200.0,0.0001818,2]
[394113711,1763302243179,-500.0,0.00018227,2]
[394113712,1763302243188,-464.0,0.00018227,2]
[394113713,1763302243198,-500.0,0.00018282,2]
[394113714,1763302243207,-464.0,0.00018282,2]
[394113715,1763302243217,-166.67,0.00018284,2]
[394113716,1763302243227,-901.96,0.00018317,2]
[394113717,1763302243236,-500.0,0.00018336,2]
[394113718,1763302243246,-464.0,0.00018336,2]
[394113719,1763302243256,-200.0,0.00018362,2]
[394113720,1763302243266,-500.0,0.00018391,2]
[394113721,1763302243276,-912.12,0.000184,7]
[394113722,1763302243285,-500.0,0.00018446,2]
[394113723,1763302243295,-500.0,0.00018501,2]
[394113724,1763302243304,-166.66,0.00018517,2]
[394113725,1763302243314,-200.0,0.00018545,2]
[394113726,1763302243323,-500.0,0.00018548,2]
[394113727,1763302243332,-420.0,0.00018552,2]
[394113728,1763302243344,-500.0,0.00018556,2]
[394113729,1763302243353,-500.0,0.0001861,2]
[394113730,1763302243362,-500.0,0.00018665,2]
[394113731,1763302243372,-500.0,0.0001872,2]
[394113732,1763302243381,-1000.0,0.0001876,2]
[394113733,1763302243391,-500.0,0.00018775,2]
[394113734,1763302243401,-1846.64510929,0.00018788,7]
[394113735,1763302243410,-901.96,0.00018813,2]
[394113736,1763302243419,-587.07819284,0.0001883,2]
[394113737,1763302243428,-5824.04185923,0.00019,2]
[394113738,1763302243437,-161.39100787,0.00019,2]
[394113739,1763302243446,-529.09,0.00019096,2]
[394113740,1763302243455,-3404.08495067,0.00019117,2]
[394113741,1763302243464,-151.0,0.00019178,2]
[394113742,1763302243474,-166.67,0.0001929,2]
[394113743,1763302243483,-1000.0,0.00019438,2]
[394113744,1763302243492,-67576.14584064,0.000195,7]
[394113745,1763302243501,-479.06402154,0.000195,7]
[394113746,1763302243510,-156.587,0.00019726,2]
[394113747,1763302243519,-157.75752592,0.00019809,2]
[394113748,1763302243528,-794.65574,0.0002,2]
[394113749,1763302243537,-479.06402154,0.000201,7]
[394113750,1763302243547,-1000.0,0.00020116,2]
[394113751,1763302243556,-701.52,0.0002014,2]
[394113752,1763302243565,-668.73,0.00020187,2]
[394113753,1763302243575,-587.0,0.00020263,2]
[394113754,1763302243584,-162.380719,0.00020274,2]
[394113755,1763302243594,-166.67,0.00020296,2]
[394113756,1763302243603,-12831.50940317,0.0002032,2]
[394113757,1763302243615,-2049.06138618,0.0002032,2]
[394113758,1763302243647,-151.0,0.0001719,2]
[394113759,1763302243656,-464.0,0.00018391,2]
[394113760,1763302243666,-221.9160738,0.00018446,2]
[394113764,1763302245475,-500.0,0.00017997,2]
[394113765,1763302245485,-303.34529622,0.00017997,2]
[394113766,1763302245494,-32.53708283,0.00017997,2]
[394113767,1763302245650,-467.46291717,0.00017997,2]
[394113768,1763302245660,-500.0,0.00017997,2]
[394113769,1763302245669,-500.0,0.00017997,2]
[394113770,1763302245679,-500.0,0.00017997,2]
[394113771,1763302245688,-500.0,0.00017997,2]
[394113772,1763302245697,-500.0,0.00017997,2]
[394113773,1763302245707,-500.0,0.00017997,2]
[394113774,1763302245716,-500.0,0.00017997,2]
[394113775,1763302245725,-500.0,0.00017997,2]
[394113776,1763302245734,-500.0,0.00017997,2]
[394113777,1763302245743,-500.0,0.00017997,2]
[394113778,1763302245752,-500.0,0.00017997,2]
[394113779,1763302245761,-498.21719517,0.00017997,2]
[394113780,1763302245771,-500.0,0.00017997,2]
[394113781,1763302245780,-500.0,0.00017997,2]
[394113782,1763302245790,-242.0839262,0.00018446,2]
[394113783,1763302245799,-464.0,0.00018501,2]
[394113784,1763302245809,-464.0,0.00018556,2]
[394113785,1763302245818,-464.0,0.0001861,2]
[394113786,1763302245827,-464.0,0.00018665,2]
[394113787,1763302245837,-464.0,0.0001872,2]
[394113788,1763302245846,-464.0,0.00018775,2]
[394113789,1763302245856,-464.0,0.0001883,2]
[394113790,1763302245866,-464.0,0.00018884,2]
[394113791,1763302245878,-464.0,0.00018939,2]
[394113792,1763302245887,-464.0,0.00018994,2]
[394113793,1763302245897,-464.0,0.00019049,2]
[394113794,1763302245906,-464.0,0.00019103,2]
[394113795,1763302245916,-4675.24541765,0.0002032,2]
[394113796,1763302245926,-10711.4934194,0.0002032,2]
[394113797,1763302245935,-1221.46452941,0.00020328,2]
[394113798,1763302246320,-500.0,0.00017997,2]
[394113799,1763302246330,-470.34376038,0.00019158,2]
[394113800,1763302246340,-3834.88273949,0.00020328,2]
[394113801,1763302246351,-1208.37,0.00020493,2]
[394113802,1763302246360,-242.57,0.00020493,2]
[394113803,1763302246370,-668.08610946,0.00020493,2]
[394113812,1763302556048,173.437069,0.00030136,120]
[394113873,1763303214650,5000.00029767,0.000162,5]
[394113875,1763303228234,5780.054702,7.945e-05,2]
[394113877,1763303251382,199.63107542,0.00016119,2]
[394113879,1763303288211,200.0,0.0001634,2]
[394113882,1763303300049,10000.01,0.00015,2]
[394113883,1763303300074,1066.33521784,0.00015,2]
[394113884,1763303311416,231.17654441,0.000154,2]
[394113889,1763303341048,150.0,0.00030135,120]
[394113924,1763303431647,-184.71410925,0.00016962,2]
[394113925,1763303431656,-367.7444,0.00017,2]
[394113926,1763303431666,-200.0,0.00017565,2]
[394113927,1763303431675,-96.52865846,0.00017696,2]
[394113928,1763303431686,-79.42682073,0.00017696,2]
[394113929,1763303431696,-166.66,0.00017796,2]
[394113930,1763303431705,-200.0,0.000178,6]
[394113931,1763303431715,-500.0,0.000179,6]
[394113932,1763303431724,-300.0,0.00017901,2]
[394113933,1763303431738,-1200.0,0.00017901,2]
[394113934,1763303431747,-1001.925524,0.00017902,2]
[394113935,1763303431763,-300.76245629,0.00017902,2]
[394113936,1763303431772,-2723.26796059,0.00017902,2]
[394113937,1763303431782,-529.79978639,0.00017902,2]
[394113938,1763303431791,-442.83551932,0.00017902,2]
[394113939,1763303431800,-500.0,0.00017973,2]
[394113940,1763303431809,-500.0,0.00017973,2]
[394113941,1763303431819,-500.0,0.00017973,2]
[394113942,1763303431828,-500.0,0.00017973,2]
[394113943,1763303431838,-1200.0,0.00017998,2]
[394113944,1763303432089,-550.0,0.00017998,2]
[394113945,1763303432108,-1323.53313318,0.00017999,2]
[394113947,1763303432117,-260.17294842,0.00017999,2]
[394113949,1763303432126,-300.0,0.00017999,2]
[394113951,1763303432135,-417.13813066,0.00017999,2]
[394113953,1763303432144,-500.0,0.00017999,2]
[394113955,1763303432154,-238.51503011,0.00017999,2]
[394113957,1763303432163,-276.03384498,0.00017999,2]
[394113959,1763303432172,-500.0,0.00017999,2]
[394113961,1763303432181,-500.0,0.00017999,2]
[394113964,1763303432191,-500.0,0.00017999,2]
[394113965,1763303432200,-500.0,0.00017999,2]
[394113966,1763303432209,-500.0,0.00017999,2]
[394113967,1763303432219,-500.0,0.00017999,2]
[394113968,1763303432228,-500.0,0.00017999,2]
[394113969,1763303432237,-500.0,0.00017999,2]
[394113971,1763303432246,-500.0,0.00017999,2]
[394113972,1763303432255,-500.0,0.00017999,2]
[394113973,1763303432264,-521.77773903,0.00017999,2]
[394113974,1763303432273,-500.0,0.00017999,2]
[394113975,1763303432283,-500.0,0.00017999,2]
[394113976,1763303432296,-500.0,0.00017999,2]
[394113977,1763303432305,-500.0,0.00017999,2]
[394113978,1763303432315,-107411.53960793,0.00018,2]
[394113979,1763303432326,-19089.28846405,0.00018,2]
[394113980,1763303432339,-34754.38570907,0.00018,2]
[394113981,1763303432350,-1126.55618914,0.00018,2]
[394113982,1763303432362,-5519.81133792,0.00018,2]
[394113983,1763303432378,-386.30344715,0.00018,2]
[394113984,1763303432389,-14330.44517204,0.00018,2]
[394113985,1763303432400,-9562.0422,0.00018,2]
[394113988,1763303437651,-12687.98897237,0.00018,2]
[394113989,1763303437768,-398.35998372,0.00018,2]
[394113990,1763303437779,-999.39958195,0.00018,2]
[394113991,1763303437790,-1962.49391036,0.00018,2]
[394113994,1763303439553,-7055.99159777,0.00018,2]
[394113995,1763303439566,-29917.78485908,0.00018,2]
[394113996,1763303439618,-4517.0793697,0.00018,2]
[394113997,1763303439630,-3829.98099585,0.00018,2]
[394113998,1763303439641,-9720.73384333,0.00018,2]
[394113999,1763303439652,-951.30798175,0.00018,2]
[394114000,1763303439663,-2920.46,0.00018,2]
[394114001,1763303439684,-9458.40606834,0.00018,2]
[394114002,1763303439696,-46460.92936275,0.00018,2]
[394114003,1763303439706,-688.37903443,0.00018,2]
[394114004,1763303439805,-4790.26,0.00018,2]
[394114010,1763303443052,-13977.22041975,0.00018,2]
[394114014,1763303445943,-1744.55523217,0.00018,2]
[394114661,1763303832902,601.85,0.00013699,2]
[394114736,1763303906318,1036.17,0.00016438,2]
[394114820,1763304169533,161.0,0.000165,2]
[394114831,1763304226052,482.44,0.00030137,120]
[394114921,1763304384107,360.39295018,0.00016113,2]
[394114924,1763304401020,153.87,0.00013793,2]
[394114972,1763304541097,150.0,0.00030136,120]
[394115019,1763304637747,-161.12,0.00016961,2]
[394115020,1763304637756,-218.58139799,0.00017635,2]
[394115021,1763304637767,-200.0,0.000177,6]
[394115022,1763304637776,-1200.0,0.00017799,2]
[394115023,1763304637785,-300.0,0.00017799,2]
[394115024,1763304637795,-300.0,0.00017799,2]
[394115025,1763304637804,-1200.0,0.00017799,2]
[394115026,1763304637813,-8845.97344549,0.000178,2]
[394115027,1763304637822,-644.48978797,0.000178,2]
[394115028,1763304637834,-2450.94116454,0.000178,2]
[394115029,1763304637843,-267.63236215,0.000178,2]
[394115030,1763304637852,-500.0,0.000178,6]
[394115031,1763304637861,-500.0,0.00017873,2]
[394115032,1763304637871,-500.96758526,0.00017873,2]
[394115033,1763304637880,-1367.17401708,0.00017873,2]
[394115034,1763304637890,-154.0,0.00017898,2]
[394115035,1763304637900,-500.0,0.00017899,2]
[394115036,1763304637909,-500.0,0.00017899,2]
[394115037,1763304637919,-500.0,0.00017899,2]
[394115038,1763304637928,-500.0,0.00017899,2]
[394115039,1763304637937,-500.0,0.00017899,2]
[394115040,1763304637947,-500.0,0.00017899,2]
[394115041,1763304637956,-500.0,0.00017899,2]
[394115042,1763304637965,-500.0,0.00017899,2]
[394115043,1763304637975,-500.0,0.00017899,2]
[394115044,1763304637983,-482.98219897,0.00017899,2]
[394115045,1763304637993,-500.0,0.00017899,2]
[394115046,1763304638002,-500.0,0.00017899,2]
[394115047,1763304638011,-500.0,0.00017899,2]
[394115048,1763304638020,-500.0,0.00017899,2]
[394115049,1763304638030,-500.0,0.00017899,2]
[394115050,1763304638039,-500.0,0.00017899,2]
[394115051,1763304638048,-600.0,0.00017899,2]
[394115052,1763304638058,-152.60759887,0.00017899,2]
[394115053,1763304638067,-273.53620388,0.00017899,2]
[394115054,1763304638078,-176.81248374,0.00017899,2]
[394115055,1763304638087,-160.26946122,0.000179,2]
[394115056,1763304638097,-58052.00513057,0.000179,2]
[394115057,1763304638113,-701947.99486943,0.000179,2]
[394115058,1763304638123,-700.0,0.000179,6]
[394115059,1763304638132,-274.24083988,0.000179,2]
[394115060,1763304638142,-1134.45697128,0.000179,2]
[394115061,1763304638152,-501.21542673,0.00017973,2]
[394115062,1763304638161,-544.69425835,0.00017973,2]
[394115063,1763304638172,-501.53785085,0.00017973,2]
[394115064,1763304638181,-413.34878165,0.00017973,2]
[394115065,1763304638191,-500.0,0.00017973,2]
[394115066,1763304638200,-634.61976444,0.00017973,2]
[394115067,1763304638209,-526.31718712,0.00017973,2]
[394115068,1763304638219,-500.0,0.00017973,2]
[394115069,1763304638228,-505.15717151,0.00017973,2]
[394115070,1763304638238,-500.0,0.00017973,2]
[394115071,1763304638248,-500.0,0.00017973,2]
[394115072,1763304638258,-151.0,0.00017989,2]
[394115073,1763304638267,-151.0,0.00017989,2]
[394115074,1763304638277,-151.0,0.00017989,2]
[394115075,1763304638286,-151.0,0.00017989,2]
[394115076,1763304638296,-151.0,0.00017989,2]
[394115077,1763304638306,-151.0,0.00017989,2]
[394115078,1763304638315,-151.0,0.00017989,2]
[394115079,1763304638325,-151.0,0.00017989,2]
[394115080,1763304638335,-151.0,0.00017989,2]
[394115081,1763304638345,-151.0,0.00017989,2]
[394115082,1763304638354,-151.0,0.00017989,2]
[394115083,1763304638364,-151.0,0.00017989,2]
[394115084,1763304638373,-151.0,0.00017989,2]
[394115085,1763304638383,-151.0,0.00017989,2]
[394115086,1763304638392,-151.0,0.00017989,2]
[394115087,1763304638402,-151.0,0.00017989,2]
[394115088,1763304638411,-151.0,0.00017989,2]
[394115089,1763304638421,-151.0,0.00017989,2]